Workbook

Sheet June 15 Calculator
A1: June 15 Calculator
B2: q1 | C2: q2 | D2: q3 | E2: q4 | F2: q5 | G2: q6 | H2: q7 | I2: q8 | J2: q9 | K2: q10 | L2: q11 | M2: q12 | N2: q13 | O2: q14 | P2: q15a | Q2: q15b | R2: q16 | S2: q17 | T2: q18 | U2: q19 | V2: q20 | W2: q21 | X2: q22 | Y2: q23 | Z2: q24 | AA2: q25 | AB2: q26a | AC2: q26b | AD2: q26c | AE2: q27 | AF2: q28a | AG2: q28b | AI2: q28
B3: Probability | C3: Trial and Improvement | D3: Using a Calculator | E3: Enlargements | F3: Using a Calculator | G3: Best Buys | H3: Expanding and Factorising | I3: Ratio | J3: Frequency Polygons | K3: Loci and Construction | L3: Area and Circumference of Circles | M3: Averages and Range | N3: Bearings | O3: Averages from Frequency Tables | P3: Fractional & Negative Indices | Q3: Standard Form | R3: Compound Measures | S3: Y=MX+ C Harder | T3: Box plots | U3: Trigonometry | V3: Proof | W3: Similar Shapes | X3: Reverse % | Y3: Sine, Cosine Rules & Area of Triangles | Z3: Upper and Lower Bounds | AA3: Solving Quadratics Using the Formula | AB3: Histograms | AC3: Histograms | AD3: Histograms | AE3: Vectors | AF3: Area and Circumference of Circles | AG3: Solving Simultaneous Equations Graphically | AH3: Sine, Cosine Rules & Area of Triangles | AI3: Histograms | AJ3: Proving Congruency
A4: Max Mark | B4: 5 | C4: 4 | D4: 3 | E4: 2 | F4: 5 | G4: 4 | H4: 4 | I4: 3 | J4: 4 | K4: 3 | L4: 4 | M4: 3 | N4: 2 | O4: 4 | P4: 1 | Q4: 2 | R4: 4 | S4: 3 | T4: 3 | U4: 4 | V4: 3 | W4: 2 | X4: 3 | Y4: 3 | Z4: 4 | AA4: 3 | AB4: 2 | AC4: 2 | AD4: 2 | AE4: 4 | AF4: 2 | AG4: 3
A5: Class Average (%) | B5: =AVERAGE(B9:B40)/B4 -> 0.6 | C5: 0.4375 | D5: 0.4761904762 | E5: 0.5357142857 | F5: 0.6 | G5: 0.4464285714 | H5: 0.4107142857 | I5: 0.5357142857 | J5: 0.4821428571 | K5: 0.5952380952 | L5: 0.5446428571 | M5: 0.4047619048 | N5: 0.4821428571 | O5: 0.4464285714 | P5: 0.3571428571 | Q5: 0.4107142857 | R5: 0.5 | S5: 0.4761904762 | T5: 0.5238095238 | U5: 0.4196428571 | V5: 0.4166666667 | W5: 0.5357142857 | X5: 0.5357142857 | Y5: 0.5 | Z5: 0.5178571429 | AA5: 0.5476190476 | AB5: =AVERAGE(AB9:AB40)/AB4 -> 0.4464285714 | AC5: 0.4642857143 | AD5: 0.4821428571 | AE5: =AVERAGE(AE9:AE40)/AE4 -> 0.4553571429 | AF5: 0.5535714286 | AG5: 0.5714285714
A6: Standard Deviation | B6: =IF(COUNT(B9:B36)<2,"",STDEV(B9:B40)/B4) -> 0.3355481971 | C6: 0.3444332435 | D6: 0.3066958042 | E6: 0.3831780224 | F6: 0.3030707044 | G6: 0.3358043333 | H6: 0.2982532924 | I6: 0.2457755963 | J6: 0.3258079091 | K6: 0.2622652642 | L6: 0.3046975689 | M6: 0.3555224852 | N6: 0.4190408549 | O6: 0.3358043333 | P6: 0.4879500365 | Q6: 0.3348181217 | R6: 0.3042903097 | S6: 0.3198324076 | T6: 0.3563483225 | U6: 0.2726207805 | V6: 0.2957170263 | W6: 0.4066250304 | X6: 0.3186815136 | Y6: 0.2796234976 | Z6: 0.3186238598 | AA6: 0.3653093364 | AB6: =IF(COUNT(AB9:AB36)<2,"",STDEV(AB9:AB40)/AB4) -> 0.3929773746 | AC6: 0.3831780224 | AD6: 0.3186238598 | AE6: =IF(COUNT(AE9:AE36)<2,"",STDEV(AE9:AE40)/AE4) -> 0.3046975689 | AF6: 0.3144450053 | AG6: 0.3123934269
B7: q1 | C7: q2 | D7: q3 | E7: q4 | F7: q5 | G7: q6 | H7: q7 | I7: q8 | J7: q9 | K7: q10 | L7: q11 | M7: q12 | N7: q13 | O7: q14 | P7: q15a | Q7: q15b | R7: q16 | S7: q17 | T7: q18 | U7: q19 | V7: q20 | W7: q21 | X7: q22 | Y7: q23 | Z7: q24 | AA7: q25 | AB7: q26a | AC7: q26b | AD7: q26c | AE7: q27 | AF7: q28a | AG7: q28b | AH7: Total Marks | AI7: Grade
A8: Name
A9: Sample student 1 | B9: =ROUND(RAND()*B$4,0) -> 4 | C9: =ROUND(RAND()*C$4,0) -> 1 | D9: 1 | E9: 1 | F9: 3 | G9: 1 | H9: 3 | I9: 2 | J9: 2 | K9: 3 | L9: 0 | M9: 2 | N9: 0 | O9: 4 | P9: 0 | Q9: 0 | R9: 4 | S9: 1 | T9: 1 | U9: 3 | V9: 0 | W9: 1 | X9: 2 | Y9: 1 | Z9: 0 | AA9: 3 | AB9: 0 | AC9: 0 | AD9: 1 | AE9: 3 | AF9: 1 | AG9: 3 | AH9: =IF(AG9="","",SUM(B9:AG9)) -> 51 | AI9: =IF(AH9="","",VLOOKUP(AH9,$AK$13:$AL$34,2)) -> B2
A10: Sample student 2 | B10: =ROUND(RAND()*B$4,0) -> 5 | C10: 4 | D10: 1 | E10: 2 | F10: 1 | G10: 0 | H10: 3 | I10: 1 | J10: 3 | K10: 1 | L10: 3 | M10: 1 | N10: 1 | O10: 3 | P10: 1 | Q10: 1 | R10: 0 | S10: 1 | T10: 0 | U10: 0 | V10: 1 | W10: 0 | X10: 2 | Y10: 0 | Z10: 2 | AA10: 3 | AB10: 2 | AC10: 0 | AD10: 0 | AE10: 1 | AF10: 1 | AG10: 3 | AH10: =IF(AG10="","",SUM(B10:AG10)) -> 47 | AI10: =IF(AH10="","",VLOOKUP(AH10,$AK$13:$AL$34,2)) -> B3 | AK10: Grade Boundaries
A11: Sample student 3 | B11: 4 | C11: 4 | D11: 1 | E11: 2 | F11: 4 | G11: 4 | H11: 1 | I11: 1 | J11: 3 | K11: 1 | L11: 2 | M11: 2 | N11: 2 | O11: 2 | P11: 0 | Q11: 1 | R11: 2 | S11: 1 | T11: 2 | U11: 0 | V11: 2 | W11: 0 | X11: 3 | Y11: 2 | Z11: 3 | AA11: 2 | AB11: 1 | AC11: 0 | AD11: 1 | AE11: 3 | AF11: 2 | AG11: 2 | AH11: 60 | AI11: B1
A12: Sample student 4 | B12: 4 | C12: 2 | D12: 2 | E12: 1 | F12: 5 | G12: 1 | H12: 1 | I12: 1 | J12: 2 | K12: 2 | L12: 2 | M12: 1 | N12: 1 | O12: 1 | P12: 0 | Q12: 1 | R12: 2 | S12: 1 | T12: 3 | U12: 2 | V12: 1 | W12: 0 | X12: 0 | Y12: 1 | Z12: 4 | AA12: 1 | AB12: 0 | AC12: 1 | AD12: 1 | AE12: 2 | AF12: 1 | AG12: 2 | AH12: 49 | AI12: B3 | AK12: Mark | AL12: Grade
A13: Sample student 5 | B13: 4 | C13: 2 | D13: 1 | E13: 2 | F13: 1 | G13: 4 | H13: 3 | I13: 1 | J13: 1 | K13: 2 | L13: 3 | M13: 1 | N13: 2 | O13: 1 | P13: 0 | Q13: 1 | R13: 1 | S13: 1 | T13: 3 | U13: 1 | V13: 1 | W13: 1 | X13: 0 | Y13: 2 | Z13: 4 | AA13: 2 | AB13: 1 | AC13: 2 | AD13: 2 | AE13: 2 | AF13: 1 | AG13: 3 | AH13: 56 | AI13: B1 | AK13: 0 | AL13: F3
A14: Sample student 6 | B14: 3 | C14: 1 | D14: 2 | E14: 0 | F14: 5 | G14: 2 | H14: 2 | I14: 3 | J14: 0 | K14: 2 | L14: 4 | M14: 2 | N14: 2 | O14: 2 | P14: 0 | Q14: 2 | R14: 3 | S14: 0 | T14: 3 | U14: 2 | V14: 1 | W14: 0 | X14: 1 | Y14: 3 | Z14: 3 | AA14: 3 | AB14: 1 | AC14: 1 | AD14: 1 | AE14: 2 | AF14: 0 | AG14: 1 | AH14: 57 | AI14: B1 | AK14: =AK13+(AK16-AK13)/3 -> 3.333333333 | AL14: F2
A15: Sample student 7 | B15: 1 | C15: 1 | D15: 2 | E15: 0 | F15: 4 | G15: 2 | H15: 2 | I15: 2 | J15: 3 | K15: 3 | L15: 4 | M15: 1 | N15: 1 | O15: 0 | P15: 0 | Q15: 0 | R15: 4 | S15: 3 | T15: 2 | U15: 0 | V15: 1 | W15: 1 | X15: 2 | Y15: 2 | Z15: 3 | AA15: 3 | AB15: 0 | AC15: 2 | AD15: 1 | AE15: 1 | AF15: 1 | AG15: 2 | AH15: 54 | AI15: B2 | AK15: =AK13+2*(AK16-AK13)/3 -> 6.666666667 | AL15: F1
A16: Sample student 8 | B16: 2 | C16: 1 | D16: 1 | E16: 0 | F16: 3 | G16: 3 | H16: 3 | I16: 1 | J16: 2 | K16: 3 | L16: 3 | M16: 0 | N16: 2 | O16: 2 | P16: 0 | Q16: 0 | R16: 3 | S16: 1 | T16: 3 | U16: 1 | V16: 2 | W16: 2 | X16: 1 | Y16: 2 | Z16: 0 | AA16: 2 | AB16: 0 | AC16: 0 | AD16: 1 | AE16: 0 | AF16: 1 | AG16: 2 | AH16: 47 | AI16: B3 | AK16: 10 | AL16: E3
A17: Sample student 9 | B17: 2 | C17: 3 | D17: 2 | E17: 1 | F17: 2 | G17: 0 | H17: 4 | I17: 1 | J17: =ROUND(RAND()*J$4,0) -> 0 | K17: 1 | L17: 2 | M17: 1 | N17: 1 | O17: 3 | P17: 0 | Q17: 1 | R17: 3 | S17: 2 | T17: 3 | U17: 3 | V17: 1 | W17: 2 | X17: 1 | Y17: 1 | Z17: =ROUND(RAND()*Z$4,0) -> 1 | AA17: 0 | AB17: 0 | AC17: 1 | AD17: 0 | AE17: 1 | AF17: 2 | AG17: 3 | AH17: 48 | AI17: B3 | AK17: =AK16+(AK19-AK16)/3 -> 12.66666667 | AL17: E2
A18: Sample student 10 | B18: 3 | C18: 4 | D18: 0 | E18: 1 | F18: 5 | G18: 2 | H18: 1 | I18: 1 | J18: 2 | K18: 1 | L18: 1 | M18: 2 | N18: 2 | O18: 2 | P18: 1 | Q18: 0 | R18: 0 | S18: 2 | T18: 1 | U18: 2 | V18: 1 | W18: 2 | X18: 1 | Y18: 1 | Z18: 0 | AA18: 3 | AB18: 1 | AC18: 0 | AD18: 1 | AE18: 3 | AF18: 1 | AG18: 1 | AH18: 48 | AI18: B3 | AK18: =AK16+2*(AK19-AK16)/3 -> 15.33333333 | AL18: E1
A19: Sample student 11 | B19: 0 | C19: 1 | D19: 0 | E19: 1 | F19: 5 | G19: 2 | H19: 2 | I19: 1 | J19: 3 | K19: 1 | L19: 2 | M19: 3 | N19: 1 | O19: 1 | P19: 1 | Q19: 1 | R19: 2 | S19: 1 | T19: 2 | U19: 3 | V19: 2 | W19: 2 | X19: 3 | Y19: 3 | Z19: 3 | AA19: 3 | AB19: 1 | AC19: 1 | AD19: 1 | AE19: 2 | AF19: 0 | AG19: 0 | AH19: 54 | AI19: B2 | AK19: 18 | AL19: D3
A20: Sample student 12 | B20: 4 | C20: 1 | D20: 1 | E20: 2 | F20: 4 | G20: 1 | H20: 2 | I20: 3 | J20: 3 | K20: 2 | L20: 2 | M20: 3 | N20: 2 | O20: 1 | P20: 1 | Q20: 0 | R20: 1 | S20: 2 | T20: 3 | U20: 1 | V20: 0 | W20: 2 | X20: 2 | Y20: 2 | Z20: 2 | AA20: 2 | AB20: 0 | AC20: 1 | AD20: 0 | AE20: 1 | AF20: 1 | AG20: 1 | AH20: 53 | AI20: B2 | AK20: =AK19+(AK22-AK19)/3 -> 22.66666667 | AL20: D2
A21: Sample student 13 | B21: 5 | C21: 1 | D21: 3 | E21: 0 | F21: 3 | G21: 0 | H21: 0 | I21: 2 | J21: 0 | K21: 3 | L21: 1 | M21: 0 | N21: 0 | O21: 3 | P21: 1 | Q21: 1 | R21: 1 | S21: 3 | T21: 0 | U21: 3 | V21: 1 | W21: 1 | X21: 1 | Y21: 1 | Z21: 2 | AA21: 1 | AB21: 0 | AC21: 2 | AD21: 1 | AE21: 0 | AF21: 2 | AG21: 1 | AH21: 43 | AI21: C1 | AK21: =AK19+2*(AK22-AK19)/3 -> 27.33333333 | AL21: D1
A22: Sample student 14 | B22: 1 | C22: 1 | D22: 0 | E22: 2 | F22: 3 | G22: 1 | H22: 1 | I22: 2 | J22: 1 | K22: 1 | L22: 2 | M22: 0 | N22: 0 | O22: 0 | P22: 1 | Q22: 1 | R22: 1 | S22: 0 | T22: 1 | U22: 2 | V22: 1 | W22: 1 | X22: 1 | Y22: 1 | Z22: 2 | AA22: 3 | AB22: 2 | AC22: 2 | AD22: 1 | AE22: 2 | AF22: 2 | AG22: 1 | AH22: 40 | AI22: C2 | AK22: 32 | AL22: C3
A23: Sample student 15 | B23: 0 | C23: 0 | D23: 2 | E23: 0 | F23: 3 | G23: 0 | H23: 1 | I23: 2 | J23: 1 | K23: 1 | L23: 0 | M23: 3 | N23: 2 | O23: 4 | P23: 1 | Q23: 1 | R23: 2 | S23: 2 | T23: 0 | U23: 4 | V23: 1 | W23: 0 | X23: 2 | Y23: 2 | Z23: 2 | AA23: 2 | AB23: 2 | AC23: 1 | AD23: 1 | AE23: 3 | AF23: 2 | AG23: 3 | AH23: 50 | AI23: B3 | AK23: =AK22+(AK25-AK22)/3 -> 36.66666667 | AL23: C2
A24: Sample student 16 | B24: 3 | C24: 0 | D24: 1 | E24: 1 | F24: 4 | G24: 0 | H24: 3 | I24: 2 | J24: 4 | K24: 1 | L24: 3 | M24: 3 | N24: 1 | O24: 0 | P24: 0 | Q24: 0 | R24: 1 | S24: 2 | T24: 1 | U24: 2 | V24: 1 | W24: 0 | X24: 1 | Y24: 1 | Z24: 3 | AA24: 0 | AB24: 2 | AC24: 0 | AD24: 2 | AE24: 1 | AF24: 1 | AG24: 1 | AH24: 45 | AI24: C1 | AK24: =AK22+2*(AK25-AK22)/3 -> 41.33333333 | AL24: C1
A25: Sample student 17 | B25: 3 | C25: 4 | D25: 1 | E25: 2 | F25: 1 | G25: 2 | H25: 0 | I25: 3 | J25: 3 | K25: 2 | L25: 3 | M25: 2 | N25: 0 | O25: 3 | P25: 1 | Q25: 0 | R25: 1 | S25: 3 | T25: 1 | U25: 1 | V25: 3 | W25: 2 | X25: 1 | Y25: 1 | Z25: 3 | AA25: 2 | AB25: 1 | AC25: 1 | AD25: 0 | AE25: 2 | AF25: 1 | AG25: 3 | AH25: 56 | AI25: B1 | AK25: 46 | AL25: B3
A26: Sample student 18 | B26: 0 | C26: 3 | D26: 2 | E26: 1 | F26: 2 | G26: 4 | H26: 0 | I26: 2 | J26: 0 | K26: 1 | L26: 0 | M26: 0 | N26: 1 | O26: 2 | P26: 0 | Q26: 1 | R26: 2 | S26: 1 | T26: 3 | U26: 3 | V26: 3 | W26: 1 | X26: 1 | Y26: 1 | Z26: 4 | AA26: 1 | AB26: 1 | AC26: 2 | AD26: 2 | AE26: 1 | AF26: 1 | AG26: 1 | AH26: 47 | AI26: B3 | AK26: =AK25+(AK28-AK25)/3 -> 51 | AL26: B2
A27: Sample student 19 | B27: 5 | C27: 4 | D27: 2 | E27: 1 | F27: 2 | G27: 4 | H27: 1 | I27: 0 | J27: 1 | K27: 3 | L27: 4 | M27: 0 | N27: 2 | O27: 0 | P27: 0 | Q27: 1 | R27: 0 | S27: 3 | T27: 0 | U27: 1 | V27: 0 | W27: 0 | X27: 2 | Y27: 3 | Z27: 2 | AA27: 1 | AB27: 2 | AC27: 1 | AD27: 0 | AE27: 4 | AF27: 1 | AG27: 2 | AH27: 52 | AI27: B2 | AK27: =AK25+2*(AK28-AK25)/3 -> 56 | AL27: B1
A28: Sample student 20 | B28: 2 | C28: 0 | D28: 1 | E28: 0 | F28: 3 | G28: 1 | H28: 3 | I28: 1 | J28: 3 | K28: 2 | L28: 1 | M28: 1 | N28: 0 | O28: 4 | P28: 1 | Q28: 1 | R28: 3 | S28: 1 | T28: 2 | U28: 2 | V28: 0 | W28: 2 | X28: 3 | Y28: 1 | Z28: 3 | AA28: 2 | AB28: 1 | AC28: 0 | AD28: 1 | AE28: 1 | AF28: 2 | AG28: 0 | AH28: 48 | AI28: B3 | AK28: 61 | AL28: A3
A29: Sample student 21 | B29: 4 | C29: 3 | D29: 2 | E29: 2 | F29: 5 | G29: 1 | H29: 2 | I29: 2 | J29: 3 | K29: 2 | L29: 2 | M29: 2 | N29: 2 | O29: 1 | P29: 0 | Q29: 2 | R29: 1 | S29: 1 | T29: 1 | U29: 2 | V29: 1 | W29: 1 | X29: 3 | Y29: 3 | Z29: 1 | AA29: 0 | AB29: 0 | AC29: 1 | AD29: 1 | AE29: 2 | AF29: 0 | AG29: 1 | AH29: 54 | AI29: B2 | AK29: =AK28+(AK31-AK28)/3 -> 66 | AL29: A2
A30: Sample student 22 | B30: 4 | C30: 1 | D30: 3 | E30: 2 | F30: 1 | G30: 2 | H30: 1 | I30: 1 | J30: 1 | K30: 1 | L30: 1 | M30: 0 | N30: 1 | O30: 0 | P30: 0 | Q30: 1 | R30: 3 | S30: 1 | T30: 1 | U30: 2 | V30: 0 | W30: 2 | X30: 3 | Y30: 0 | Z30: 1 | AA30: 0 | AB30: 2 | AC30: 1 | AD30: 1 | AE30: 1 | AF30: 0 | AG30: 2 | AH30: 40 | AI30: C2 | AK30: =AK28+2*(AK31-AK28)/3 -> 71 | AL30: A1
A31: Sample student 23 | B31: 5 | C31: 1 | D31: 1 | E31: 1 | F31: 2 | G31: 1 | H31: 2 | I31: 1 | J31: 4 | K31: 2 | L31: 1 | M31: 0 | N31: 0 | O31: 3 | P31: 0 | Q31: 0 | R31: 4 | S31: 1 | T31: 2 | U31: 1 | V31: 2 | W31: 2 | X31: 0 | Y31: 2 | Z31: 4 | AA31: 2 | AB31: 1 | AC31: 2 | AD31: 2 | AE31: 4 | AF31: 1 | AG31: 2 | AH31: 56 | AI31: B1 | AK31: 76 | AL31: A*3
A32: Sample student 24 | B32: 5 | C32: 1 | D32: 3 | E32: 0 | F32: 5 | G32: 2 | H32: 0 | I32: 2 | J32: 1 | K32: 3 | L32: 4 | M32: 0 | N32: 1 | O32: 1 | P32: 0 | Q32: 1 | R32: 2 | S32: 2 | T32: 2 | U32: 1 | V32: 1 | W32: 1 | X32: 1 | Y32: 1 | Z32: 1 | AA32: 1 | AB32: 0 | AC32: 2 | AD32: 1 | AE32: 4 | AF32: 2 | AG32: 1 | AH32: 52 | AI32: B2 | AK32: =AK31+(AK34-AK31)/3 -> 84 | AL32: A*2
A33: Sample student 25 | B33: 3 | C33: 0 | D33: 3 | E33: 1 | F33: 1 | G33: 2 | H33: 0 | I33: =ROUND(RAND()*I$4,0) -> 2 | J33: 0 | K33: 1 | L33: 3 | M33: 1 | N33: 0 | O33: 1 | P33: 1 | Q33: 2 | R33: 2 | S33: 0 | T33: 0 | U33: 0 | V33: 2 | W33: 1 | X33: 3 | Y33: 1 | Z33: 2 | AA33: 0 | AB33: 1 | AC33: 0 | AD33: 2 | AE33: 2 | AF33: 1 | AG33: 1 | AH33: 39 | AI33: C2 | AK33: =AK31+2*(AK34-AK31)/3 -> 92 | AL33: A*1
A34: Sample student 26 | B34: =ROUND(RAND()*B$4,0) -> 0 | C34: 1 | D34: 0 | E34: 2 | F34: 4 | G34: 1 | H34: 3 | I34: 1 | J34: 4 | K34: 2 | L34: 3 | M34: 1 | N34: 0 | O34: 3 | P34: 0 | Q34: 1 | R34: 2 | S34: 0 | T34: 1 | U34: 1 | V34: 2 | W34: 0 | X34: 1 | Y34: 1 | Z34: 1 | AA34: 0 | AB34: 2 | AC34: 0 | AD34: 0 | AE34: 0 | AF34: 1 | AG34: 3 | AH34: 41 | AI34: C2 | AK34: 100 | AL34: A*1
A35: Sample student 27 | B35: 4 | C35: 1 | D35: 1 | E35: 1 | F35: 3 | G35: 3 | H35: 0 | I35: 2 | J35: 2 | K35: 2 | L35: 3 | M35: 0 | N35: 0 | O35: 3 | P35: 0 | Q35: 0 | R35: 4 | S35: 1 | T35: 1 | U35: 3 | V35: 3 | W35: 1 | X35: 2 | Y35: 2 | Z35: 2 | AA35: 2 | AB35: 0 | AC35: 1 | AD35: 1 | AE35: 3 | AF35: 1 | AG35: 1 | AH35: 53 | AI35: B2
A36: Sample student 28 | B36: 4 | C36: 3 | D36: 1 | E36: 1 | F36: 0 | G36: 4 | H36: 2 | I36: 2 | J36: 2 | K36: 1 | L36: 2 | M36: 2 | N36: 0 | O36: 0 | P36: 0 | Q36: 2 | R36: 2 | S36: 3 | T36: 2 | U36: 1 | V36: 1 | W36: 2 | X36: 2 | Y36: 1 | Z36: 0 | AA36: 2 | AB36: 1 | AC36: 1 | AD36: 1 | AE36: 0 | AF36: 1 | AG36: 2 | AH36: 48 | AI36: B3
